[Event "EYTCC U18 Open 2019"]
[Site "Pardubice"]
[Date "2019.07.16"]
[Round "6.25"]
[White "Engel, Luis"]
[Black "Gazik, Viktor"]
[Result "1/2-1/2"]
[ECO "B12"]
[WhiteElo "2509"]
[BlackElo "2525"]
[Annotator "ChessBase"]
[PlyCount "173"]
[EventDate "2019.07.11"]
[EventType "swiss"]
[EventCountry "CZE"]
[SourceTitle "playchess.com"]
[Source "ChessBase"]
[SourceQuality "1"]
[WhiteTeam "Germany"]
[BlackTeam "Slovakia"]
[WhiteTeamCountry "GER"]
[BlackTeamCountry "SVK"]
[TimeControl "40/5400+30:1800+30"]

1. e4 {[%emt 0:00:00]} c6 {[%emt 0:00:00]} 2. d4 {[%emt 0:00:00]} d5 {[%emt 0:00:00]} 3. e5 {[%emt 0:00:00]} Bf5 {[%emt 0:00:00]} 4. Nf3 {[%emt 0:00:00]} e6 {[%emt 0:00:00]} 5. Be2 {[%emt 0:00:01]} Ne7 {[%emt 0:00:01]} 6. O-O {[%emt 0:00:09]} Ng6 {[%emt 0:01:30]} 7. c4 {[%emt 0:07:21]} dxc4 {[%emt 0:03:07]} 8. Bxc4 {[%emt 0:01:35]} Nd7 {[%emt 0:01:03]} 9. Nc3 {[%emt 0:02:38]} Be7 {[%emt 0:20:01]} 10. Be3 {[%emt 0:06:17]} Nb6 {[%emt 0:10:55]} 11. Bb3 {[%emt 0:02:08]} f6 {[%emt 0:12:34]} 12. h3 {[%emt 0:08:54]} h5 {[%emt 0:01:42]} 13. Re1 {[%emt 0:13:00]} Nd5 {[%emt 0:04:28]} 14. Bd2 {[%emt 0:09:28]} Kf7 {[%emt 0:06:52]} 15. Ne4 {[%emt 0:05:16]} h4 {[%emt 0:02:25]} 16. Rc1 {[%emt 0:02:13]} Rc8 {[%emt 0:00:41]} 17. Qe2 {[%emt 0:03:47]} b6 {[%emt 0:08:03]} 18. Bc4 {[%emt 0:04:54]} Rc7 {[%emt 0:04:18]} 19. a3 {[%emt 0:02:08]} a5 {[%emt 0:04:38]} 20. Bb3 {[%emt 0:02:41]} Qd7 {[%emt 0:05:25]} 21. Bc2 {[%emt 0:01:55]} Qc8 {[%emt 0:00:56]} 22. Nd6+ {[%emt 0:07:58]} Bxd6 {[%emt 0:00:06]} 23. exd6 {[%emt 0:00:06]} Rb7 {[%emt 0:01:12]} 24. Bxf5 {[%emt 0:02:47]} exf5 {[%emt 0:00:03]} 25. Rxc6 {[%emt 0:01:02]} Qxc6 {[%emt 0:00:02]} 26. Qe6+ {[%emt 0:00:07]} Kf8 {[%emt 0:00:06]} 27. Rc1 {[%emt 0:00:11]} Ndf4 {[%emt 0:05:30]} 28. Bxf4 {[%emt 0:00:17]} Nxf4 {[%emt 0:00:06]} 29. Rxc6 {[%emt 0:00:09]} Nxe6 {[%emt 0:00:04]} 30. Rc8+ {[%emt 0:00:06]} Kf7 {[%emt 0:00:03]} 31. Rxh8 {[%emt 0:00:07]} Rd7 {[%emt 0:01:09]} 32. d5 {[%emt 0:02:47]} Nc5 {[%emt 0:04:54]} 33. Nxh4 {[%emt 0:01:26]} Rxd6 {[%emt 0:00:16]} 34. Nxf5 {[%emt 0:02:18]} Rxd5 {[%emt 0:00:01]} 35. Ne3 {[%emt 0:01:25]} Rd3 {[%emt 0:01:57]} 36. Rb8 {[%emt 0:03:30]} Rb3 {[%emt 0:00:04]} 37. Nc4 {[%emt 0:00:25]} Na4 {[%emt 0:00:01]} 38. Nxa5 {[%emt 0:04:15]} Rxb2 {[%emt 0:00:07]} 39. Nc4 {[%emt 0:00:10]} Rb3 {[%emt 0:02:36]} 40. Ra8 {[%emt 0:02:08]} b5 {[%emt 0:00:01]} 41. Nd6+ {[%emt 0:31:36]} Kg6 {[%emt 0:03:35]} 42. Nxb5 {[%emt 0:00:00]} Nb6 {[%emt 0:00:06]} 43. Ra5 {[%emt 0:00:00]} Nc4 {[%emt 0:00:04]} 44. Ra4 {[%emt 0:00:00]} Nb6 {[%emt 0:00:05]} 45. Rg4+ {[%emt 0:00:00]} Kh7 {[%emt 0:00:03]} 46. Rh4+ {[%emt 0:00:00]} Kg8 {[%emt 0:07:23]} 47. Rh5 {[%emt 0:00:00]} g5 {[%emt 0:00:42]} 48. Nd6 {[%emt 0:00:00]} Rxa3 {[%emt 0:05:29]} 49. Ne4 {[%emt 0:00:00]} Nd7 {[%emt 0:02:11]} 50. h4 {[%emt 0:00:00]} Ra1+ {[%emt 0:09:00]} 51. Kh2 {[%emt 0:00:00]} Re1 {[%emt 0:00:10]} 52. Nd6 {[%emt 0:00:00]} gxh4 {[%emt 0:00:39]} 53. Rxh4 {[%emt 0:00:00]} Ne5 {[%emt 0:00:37]} 54. Kg3 {[%emt 0:00:00]} Rd1 {[%emt 0:03:03]} 55. Ne4 {[%emt 0:00:00]} Rd3+ {[%emt 0:00:01]} 56. f3 {[%emt 0:00:00]} Kg7 {[%emt 0:00:07]} 57. Rf4 {[%emt 0:00:00]} Nd7 {[%emt 0:00:02]} 58. Rf5 {[%emt 0:00:00]} Ra3 {[%emt 0:02:39]} 59. Rd5 {[%emt 0:00:00]} Ra7 {[%emt 0:00:34]} 60. Kf4 {[%emt 0:00:00]} Nf8 {[%emt 0:00:13]} 61. Rd6 {[%emt 0:00:00]} Ng6+ {[%emt 0:03:10]} 62. Kg3 {[%emt 0:00:40]} Rf7 {[%emt 0:00:28]} 63. Nc5 {[%emt 0:01:53]} Re7 {[%emt 0:01:27]} 64. Nd7 {[%emt 0:01:00]} Rf7 {[%emt 0:01:47]} 65. Kg4 {[%emt 0:00:53]} Ne7 {[%emt 0:00:12]} 66. Nc5 {[%emt 0:00:39]} Ng8 {[%emt 0:00:55]} 67. Kh5 {[%emt 0:01:45]} Re7 {[%emt 0:00:23]} 68. f4 {[%emt 0:00:57]} Re2 {[%emt 0:00:44]} 69. Rd7+ {[%emt 0:00:37]} Ne7 {[%emt 0:00:01]} 70. g3 {[%emt 0:01:14]} Kf7 {[%emt 0:00:18]} 71. Kg4 {[%emt 0:00:34]} Re3 {[%emt 0:00:20]} 72. Nd3 {[%emt 0:01:49]} Ke8 {[%emt 0:01:26]} 73. Nc5 {[%emt 0:02:09]} Rc3 {[%emt 0:00:13]} 74. Rc7 {[%emt 0:00:16]} Nd5 {[%emt 0:00:24]} 75. Rc8+ {[%emt 0:01:38]} Kf7 {[%emt 0:00:02]} 76. Nb7 {[%emt 0:01:26]} f5+ {[%emt 0:01:04]} 77. Kh4 {[%emt 0:00:31]} Rxc8 {[%emt 0:00:07]} 78. Nd6+ {[%emt 0:00:04]} Ke6 {[%emt 0:01:09]} 79. Nxc8 {[%emt 0:00:05]} Kd7 {[%emt 0:00:04]} 80. Na7 {[%emt 0:00:28]} Nc3 {[%emt 0:00:02]} 81. Kg5 {[%emt 0:00:58]} Ne4+ {[%emt 0:00:05]} 82. Kxf5 {[%emt 0:00:05]} Nxg3+ {[%emt 0:00:05]} 83. Kg6 {[%emt 0:00:06]} Ke6 {[%emt 0:01:42]} 84. Nc6 {[%emt 0:00:14]} Kd6 {[%emt 0:00:47]} 85. Nd4 {[%emt 0:00:09]} Kd5 {[%emt 0:00:09]} 86. f5 {[%emt 0:00:12]} Nxf5 {[%emt 0:00:06]} 87. Nxf5 {[%emt 0:00:03]} 1/2-1/2

[Event "EYTCC U18 Open 2019"]
[Site "Pardubice"]
[Date "2019.07.16"]
[Round "6.26"]
[White "Pechac, Jergus"]
[Black "Buckels, Valentin"]
[Result "1-0"]
[ECO "E32"]
[WhiteElo "2469"]
[BlackElo "2451"]
[Annotator "ChessBase"]
[PlyCount "73"]
[EventDate "2019.07.11"]
[EventType "swiss"]
[EventCountry "CZE"]
[SourceTitle "playchess.com"]
[Source "ChessBase"]
[SourceQuality "1"]
[WhiteTeam "Slovakia"]
[BlackTeam "Germany"]
[WhiteTeamCountry "SVK"]
[BlackTeamCountry "GER"]
[TimeControl "40/5400+30:1800+30"]

1. d4 {[%emt 0:00:00]} Nf6 {[%emt 0:00:00]} 2. c4 {[%emt 0:00:00]} e6 {[%emt 0:00:00]} 3. Nc3 {[%emt 0:00:00]} Bb4 {[%emt 0:00:00]} 4. Qc2 {[%emt 0:00:00]} O-O {[%emt 0:00:09]} 5. e4 {[%emt 0:00:00]} d5 {[%emt 0:01:04]} 6. e5 {[%emt 0:00:06]} Ne4 {[%emt 0:00:24]} 7. Bd3 {[%emt 0:00:05]} c5 {[%emt 0:04:17]} 8. Nf3 {[%emt 0:00:08]} Nc6 {[%emt 0:06:43]} 9. dxc5 {[%emt 0:14:15]} f5 {[%emt 0:17:38]} 10. exf6 {[%emt 0:08:22]} Nxf6 {[%emt 0:01:02]} 11. Bg5 {[%emt 0:19:11]} h6 {[%emt 0:05:13]} 12. Bxf6 {[%emt 0:01:56]} Qxf6 {[%emt 0:00:38]} 13. O-O {[%emt 0:00:32]} Bxc5 {[%emt 0:10:14]} 14. cxd5 {[%emt 0:01:23]} Nd4 {[%emt 0:05:07]} 15. Nxd4 {[%emt 0:01:07]} Bxd4 {[%emt 0:01:31]} 16. Be4 {[%emt 0:08:31]} exd5 {[%emt 0:12:16]} 17. Nxd5 {[%emt 0:04:58]} Qe5 {[%emt 0:14:59]} 18. Kh1 {[%emt 0:00:46]} Bf5 {[%emt 0:04:55]} 19. Bxf5 {[%emt 0:02:09]} Qxd5 {[%emt 0:00:06]} 20. Be4 {[%emt 0:00:10]} Qb5 {[%emt 0:02:01]} 21. Bxb7 {[%emt 0:11:59]} Rad8 {[%emt 0:00:40]} 22. Be4 {[%emt 0:06:51]} Qxb2 {[%emt 0:01:18]} 23. Qc4+ {[%emt 0:00:04]} Kh8 {[%emt 0:00:09]} 24. Rab1 {[%emt 0:00:12]} Qc3 {[%emt 0:02:46]} 25. Qe2 {[%emt 0:01:53]} Bb6 {[%emt 0:01:18]} 26. Rbd1 {[%emt 0:04:37]} Rxd1 {[%emt 0:02:23]} 27. Rxd1 {[%emt 0:00:38]} Qc5 {[%emt 0:02:09]} 28. Bd3 {[%emt 0:02:21]} Qd4 {[%emt 0:01:35]} 29. Qe6 {[%emt 0:01:43]} Qa4 {[%emt 0:01:39]} 30. Re1 {[%emt 0:00:58]} Qb4 {[%emt 0:00:36]} 31. f3 {[%emt 0:01:42]} Qh4 {[%emt 0:01:33]} 32. g3 {[%emt 0:01:14]} Qb4 {[%emt 0:00:55]} 33. a3 {[%emt 0:00:41]} Qd4 {[%emt 0:00:40]} 34. Qg6 {[%emt 0:00:23]} Kg8 35. Qh7+ {[%emt 0:00:12]} Kf7 {[%emt 0:00:02]} 36. Bg6+ {[%emt 0:00:15]} Kf6 {[%emt 0:00:02]} 37. Bh5 {[%emt 0:00:10]} 1-0

[Event "EYTCC U18 Open 2019"]
[Site "Pardubice"]
[Date "2019.07.16"]
[Round "6.27"]
[White "Parvanyan, Ashot"]
[Black "Haring, Filip"]
[Result "1-0"]
[ECO "A06"]
[WhiteElo "2423"]
[BlackElo "2334"]
[Annotator "ChessBase"]
[PlyCount "177"]
[EventDate "2019.07.11"]
[EventType "swiss"]
[EventCountry "CZE"]
[SourceTitle "playchess.com"]
[Source "ChessBase"]
[SourceQuality "1"]
[WhiteTeam "Germany"]
[BlackTeam "Slovakia"]
[WhiteTeamCountry "GER"]
[BlackTeamCountry "SVK"]
[TimeControl "40/5400+30:1800+30"]

1. Nf3 {[%emt 0:00:00]} d5 {[%emt 0:00:00]} 2. g3 {[%emt 0:00:00]} c6 {[%emt 0:00:00]} 3. Bg2 {[%emt 0:00:07]} Bg4 {[%emt 0:00:08]} 4. O-O {[%emt 0:00:21]} Nd7 {[%emt 0:00:15]} 5. d3 {[%emt 0:00:35]} Ngf6 {[%emt 0:00:52]} 6. h3 {[%emt 0:00:17]} Bxf3 {[%emt 0:01:09]} 7. Bxf3 {[%emt 0:00:08]} e6 {[%emt 0:00:25]} 8. e4 {[%emt 0:01:23]} Be7 {[%emt 0:00:44]} 9. Nc3 {[%emt 0:01:36]} O-O {[%emt 0:00:38]} 10. Bg2 {[%emt 0:04:02]} a5 {[%emt 0:03:54]} 11. Qe2 {[%emt 0:06:47]} a4 {[%emt 0:05:37]} 12. a3 {[%emt 0:02:51]} b5 {[%emt 0:07:49]} 13. Kh1 {[%emt 0:22:31]} Nb6 {[%emt 0:09:04]} 14. f4 {[%emt 0:03:56]} d4 {[%emt 0:09:13]} 15. Nd1 {[%emt 0:00:41]} c5 {[%emt 0:06:15]} 16. Nf2 {[%emt 0:04:49]} b4 {[%emt 0:05:21]} 17. g4 {[%emt 0:03:24]} Rc8 {[%emt 0:09:21]} 18. g5 {[%emt 0:05:28]} Nfd7 {[%emt 0:02:01]} 19. e5 {[%emt 0:08:46]} c4 {[%emt 0:03:42]} 20. axb4 {[%emt 0:02:20]} Bxb4 {[%emt 0:05:26]} 21. Ne4 {[%emt 0:13:57]} Be7 {[%emt 0:05:56]} 22. f5 {[%emt 0:09:29]} exf5 {[%emt 0:02:23]} 23. Rxf5 {[%emt 0:00:48]} cxd3 {[%emt 0:04:24]} 24. cxd3 {[%emt 0:00:20]} g6 {[%emt 0:01:57]} 25. Rf1 {[%emt 0:00:15]} Kg7 {[%emt 0:01:28]} 26. Nd6 {[%emt 0:02:41]} Rc5 {[%emt 0:06:40]} 27. Nb7 {[%emt 0:01:35]} Rxe5 {[%emt 0:02:34]} 28. Qxe5+ {[%emt 0:00:10]} Nxe5 {[%emt 0:00:06]} 29. Nxd8 {[%emt 0:00:04]} Rxd8 {[%emt 0:04:13]} 30. Bf4 {[%emt 0:01:57]} Bd6 {[%emt 0:00:50]} 31. Be4 {[%emt 0:00:52]} Bb8 {[%emt 0:02:14]} 32. Rac1 {[%emt 0:01:48]} Nbd7 {[%emt 0:00:39]} 33. Rc2 {[%emt 0:01:05]} f5 {[%emt 0:00:34]} 34. gxf6+ {[%emt 0:00:22]} Nxf6 {[%emt 0:00:05]} 35. Bh6+ {[%emt 0:01:31]} Kxh6 {[%emt 0:00:18]} 36. Rxf6 {[%emt 0:00:04]} Bd6 {[%emt 0:00:21]} 37. Kg2 {[%emt 0:00:46]} Kg7 {[%emt 0:01:02]} 38. Rf1 {[%emt 0:00:20]} a3 {[%emt 0:00:24]} 39. bxa3 {[%emt 0:00:17]} Bxa3 {[%emt 0:00:06]} 40. Rc7+ {[%emt 0:00:55]} Kh6 {[%emt 0:00:21]} 41. Rb1 {[%emt 0:12:17]} Bd6 {[%emt 0:00:40]} 42. Rc2 {[%emt 0:00:17]} Nf7 {[%emt 0:11:38]} 43. Rb5 {[%emt 0:03:53]} Re8 {[%emt 0:08:53]} 44. Rd5 {[%emt 0:07:03]} Be5 {[%emt 0:01:22]} 45. Re2 {[%emt 0:01:31]} Bf6 {[%emt 0:08:33]} 46. Rf2 {[%emt 0:03:38]} Kg7 {[%emt 0:01:12]} 47. Rd7 {[%emt 0:03:53]} Re7 {[%emt 0:00:10]} 48. Rxe7 {[%emt 0:00:48]} Bxe7 {[%emt 0:00:04]} 49. Ra2 {[%emt 0:00:19]} Nd6 {[%emt 0:02:11]} 50. Kf3 {[%emt 0:00:43]} Kf6 {[%emt 0:00:29]} 51. Ra5 {[%emt 0:00:25]} Ke6 {[%emt 0:00:19]} 52. Bd5+ {[%emt 0:00:30]} Kf6 {[%emt 0:00:10]} 53. Bc6 {[%emt 0:01:18]} Ke6 {[%emt 0:01:29]} 54. Ra7 {[%emt 0:00:34]} Kf6 {[%emt 0:00:22]} 55. Bd7 {[%emt 0:00:27]} h5 {[%emt 0:00:53]} 56. Ra4 {[%emt 0:00:19]} Ke5 {[%emt 0:00:32]} 57. Ra5+ {[%emt 0:00:07]} Kf6 {[%emt 0:00:01]} 58. Rd5 {[%emt 0:00:30]} Nf7 {[%emt 0:00:25]} 59. Rxd4 g5 {[%emt 0:00:48]} 60. Be8 {[%emt 0:01:34]} Ne5+ {[%emt 0:00:35]} 61. Kg2 {[%emt 0:00:34]} h4 {[%emt 0:00:21]} 62. Bh5 {[%emt 0:00:27]} Bc5 {[%emt 0:00:29]} 63. Rd5 {[%emt 0:00:12]} Be3 {[%emt 0:00:17]} 64. d4 {[%emt 0:00:45]} Nd3 {[%emt 0:00:05]} 65. Kf3 {[%emt 0:00:35]} Nf4 {[%emt 0:00:08]} 66. Rd8 {[%emt 0:00:31]} Bxd4 67. Rxd4 {[%emt 0:00:26]} Nxh5 {[%emt 0:01:17]} 68. Rd6+ {[%emt 0:00:28]} Kf5 {[%emt 0:00:18]} 69. Rd5+ {[%emt 0:00:31]} Kg6 {[%emt 0:00:12]} 70. Ra5 Nf6 {[%emt 0:00:16]} 71. Re5 {[%emt 0:00:58]} Nd7 {[%emt 0:00:32]} 72. Rb5 {[%emt 0:00:25]} Nf6 {[%emt 0:00:06]} 73. Rb4 {[%emt 0:00:17]} Kf5 {[%emt 0:00:10]} 74. Ra4 {[%emt 0:00:20]} Kg6 {[%emt 0:00:23]} 75. Ke3 {[%emt 0:00:24]} Kf5 {[%emt 0:00:14]} 76. Ra5+ {[%emt 0:00:13]} Kg6 {[%emt 0:00:07]} 77. Ra6 {[%emt 0:00:46]} Kf5 {[%emt 0:00:07]} 78. Ra5+ {[%emt 0:00:10]} Kg6 {[%emt 0:00:05]} 79. Rb5 {[%emt 0:00:25]} Nh5 {[%emt 0:01:13]} 80. Ke4 {[%emt 0:00:34]} Nf6+ {[%emt 0:00:57]} 81. Ke5 {[%emt 0:00:30]} Nd7+ {[%emt 0:00:43]} 82. Ke6 {[%emt 0:00:30]} Nf8+ {[%emt 0:02:25]} 83. Ke7 {[%emt 0:00:14]} Nh7 {[%emt 0:00:16]} 84. Rb6+ {[%emt 0:01:25]} Kg7 {[%emt 0:01:28]} 85. Ke6 {[%emt 0:00:38]} Kg6 {[%emt 0:00:34]} 86. Ke5+ {[%emt 0:00:09]} Kg7 {[%emt 0:00:29]} 87. Kf5 {[%emt 0:00:05]} Kg8 {[%emt 0:00:26]} 88. Rb7 {[%emt 0:00:20]} Kh8 {[%emt 0:00:30]} 89. Ke6 1-0

[Event "EYTCC U18 Open 2019"]
[Site "Pardubice"]
[Date "2019.07.16"]
[Round "6.28"]
[White "Sahidi, Samir"]
[Black "Schmidek, Emil"]
[Result "0-1"]
[ECO "A16"]
[WhiteElo "2369"]
[BlackElo "2391"]
[Annotator "ChessBase"]
[PlyCount "110"]
[EventDate "2019.07.11"]
[EventType "swiss"]
[EventCountry "CZE"]
[SourceTitle "playchess.com"]
[Source "ChessBase"]
[SourceQuality "1"]
[WhiteTeam "Slovakia"]
[BlackTeam "Germany"]
[WhiteTeamCountry "SVK"]
[BlackTeamCountry "GER"]
[TimeControl "40/5400+30:1800+30"]

1. c4 {[%emt 0:00:00]} Nf6 {[%emt 0:00:00]} 2. Nc3 {[%emt 0:00:00]} g6 {[%emt 0:00:00]} 3. Nf3 {[%emt 0:00:59]} Bg7 {[%emt 0:00:00]} 4. g3 {[%emt 0:02:20]} O-O {[%emt 0:01:21]} 5. Bg2 {[%emt 0:00:17]} d5 {[%emt 0:00:12]} 6. cxd5 {[%emt 0:00:28]} Nxd5 {[%emt 0:00:07]} 7. O-O {[%emt 0:00:28]} c5 {[%emt 0:00:05]} 8. Qb3 {[%emt 0:02:08]} Nb6 {[%emt 0:06:35]} 9. d3 {[%emt 0:00:54]} Nc6 {[%emt 0:00:39]} 10. Qb5 {[%emt 0:04:55]} Nd7 {[%emt 0:05:01]} 11. Qa4 {[%emt 0:01:42]} Nd4 {[%emt 0:05:59]} 12. Nxd4 {[%emt 0:02:57]} cxd4 {[%emt 0:12:57]} 13. Ne4 {[%emt 0:00:19]} Nb6 {[%emt 0:05:10]} 14. Qa5 {[%emt 0:04:07]} Nd5 {[%emt 0:08:15]} 15. Qxd5 {[%emt 0:01:48]} Qxd5 {[%emt 0:00:06]} 16. Nf6+ {[%emt 0:00:04]} Bxf6 {[%emt 0:00:16]} 17. Bxd5 {[%emt 0:00:05]} Bh3 {[%emt 0:01:32]} 18. Re1 {[%emt 0:04:16]} Rab8 {[%emt 0:00:16]} 19. Bf4 {[%emt 0:05:46]} e5 {[%emt 0:00:11]} 20. Bh6 {[%emt 0:01:45]} Rfd8 {[%emt 0:01:27]} 21. Bb3 {[%emt 0:09:35]} g5 {[%emt 0:17:47]} 22. Rac1 {[%emt 0:02:29]} Rd6 {[%emt 0:03:51]} 23. Rc7 {[%emt 0:01:45]} Bd7 {[%emt 0:00:08]} 24. e3 {[%emt 0:01:22]} Bd8 {[%emt 0:01:32]} 25. Rxd7 {[%emt 0:01:16]} Rxd7 {[%emt 0:00:05]} 26. h4 {[%emt 0:00:31]} gxh4 {[%emt 0:01:59]} 27. exd4 {[%emt 0:00:13]} Rd6 {[%emt 0:00:38]} 28. Be3 {[%emt 0:02:06]} hxg3 {[%emt 0:02:09]} 29. dxe5 {[%emt 0:00:50]} Rxd3 {[%emt 0:04:46]} 30. Bxa7 {[%emt 0:03:00]} gxf2+ {[%emt 0:07:05]} 31. Bxf2 {[%emt 0:00:44]} Be7 {[%emt 0:02:54]} 32. Re4 {[%emt 0:00:56]} Rf3 {[%emt 0:02:59]} 33. Kg2 {[%emt 0:00:57]} Rf5 {[%emt 0:00:19]} 34. Be3 {[%emt 0:02:43]} Kh8 {[%emt 0:00:45]} 35. Rf4 {[%emt 0:14:05]} Rxf4 {[%emt 0:01:57]} 36. Bxf4 {[%emt 0:02:02]} Rg8+ {[%emt 0:00:28]} 37. Kh3 {[%emt 0:01:49]} Kg7 {[%emt 0:00:11]} 38. e6 {[%emt 0:02:25]} f5 {[%emt 0:08:16]} 39. Bd5 {[%emt 0:03:54]} b5 {[%emt 0:00:45]} 40. Bc6 {[%emt 0:03:02]} b4 {[%emt 0:00:06]} 41. Be5+ {[%emt 0:33:30]} Kg6 {[%emt 0:30:58]} 42. Bd4 {[%emt 0:07:45]} Rc8 {[%emt 0:00:00]} 43. Bb5 {[%emt 0:00:00]} h5 {[%emt 0:00:00]} 44. Be5 {[%emt 0:00:00]} Rd8 {[%emt 0:00:00]} 45. Bd7 {[%emt 0:00:00]} Ra8 {[%emt 0:00:00]} 46. Bg3 {[%emt 0:00:00]} Rxa2 {[%emt 0:00:00]} 47. Be8+ {[%emt 0:00:00]} Kh6 {[%emt 0:00:00]} 48. Bf4+ {[%emt 0:00:00]} Kh7 {[%emt 0:00:00]} 49. Be5 {[%emt 0:00:00]} h4 {[%emt 0:00:00]} 50. Bd4 {[%emt 0:00:00]} Ra1 {[%emt 0:00:00]} 51. Bf2 {[%emt 0:00:00]} Rf1 {[%emt 0:00:36]} 52. Kg2 {[%emt 0:00:00]} Rb1 {[%emt 0:00:16]} 53. Bd4 {[%emt 0:00:20]} Rd1 {[%emt 0:00:07]} 54. Be3 {[%emt 0:00:06]} h3+ {[%emt 0:00:32]} 55. Kh2 {[%emt 0:00:11]} Bd6+ {[%emt 0:00:08]} 0-1

[Event "EYTCC U18 Open 2019"]
[Site "Pardubice"]
[Date "2019.07.16"]
[Round "6.29"]
[White "Van Foreest, Lucas"]
[Black "Zarubitski, Viachaslau"]
[Result "1-0"]
[ECO "C42"]
[WhiteElo "2521"]
[BlackElo "2424"]
[Annotator "ChessBase"]
[PlyCount "77"]
[EventDate "2019.07.11"]
[EventType "swiss"]
[EventCountry "CZE"]
[SourceTitle "playchess.com"]
[Source "ChessBase"]
[SourceQuality "1"]
[WhiteTeam "Netherlands"]
[BlackTeam "Belarus"]
[WhiteTeamCountry "NED"]
[BlackTeamCountry "BLR"]
[TimeControl "40/5400+30:1800+30"]

1. e4 {[%emt 0:00:00]} e5 {[%emt 0:00:00]} 2. Nf3 {[%emt 0:00:00]} Nf6 {[%emt 0:00:00]} 3. Nxe5 {[%emt 0:00:00]} d6 {[%emt 0:00:00]} 4. Nf3 {[%emt 0:00:00]} Nxe4 {[%emt 0:00:00]} 5. d4 {[%emt 0:00:03]} d5 {[%emt 0:00:00]} 6. Bd3 {[%emt 0:00:20]} Bd6 {[%emt 0:00:00]} 7. O-O {[%emt 0:00:38]} O-O {[%emt 0:00:00]} 8. c4 {[%emt 0:00:09]} c6 {[%emt 0:00:00]} 9. Nc3 {[%emt 0:00:11]} Nxc3 {[%emt 0:00:05]} 10. bxc3 {[%emt 0:00:03]} dxc4 {[%emt 0:00:04]} 11. Bxc4 {[%emt 0:00:06]} Bf5 {[%emt 0:00:03]} 12. Bg5 {[%emt 0:00:47]} Qa5 {[%emt 0:01:09]} 13. Nh4 {[%emt 0:00:10]} Be6 {[%emt 0:00:10]} 14. Bxe6 {[%emt 0:00:06]} Qxg5 {[%emt 0:00:06]} 15. Nf3 {[%emt 0:00:03]} Qa5 {[%emt 0:00:11]} 16. Bb3 {[%emt 0:00:06]} Nd7 {[%emt 0:01:50]} 17. Qd3 {[%emt 0:02:52]} Nf6 {[%emt 0:02:54]} 18. g3 {[%emt 0:00:54]} Rae8 {[%emt 0:13:19]} 19. h4 {[%emt 0:09:29]} Re7 {[%emt 0:12:36]} 20. Rfe1 {[%emt 0:08:32]} Rfe8 {[%emt 0:00:40]} 21. Kg2 {[%emt 0:05:36]} Rxe1 {[%emt 0:02:15]} 22. Rxe1 {[%emt 0:00:19]} Rxe1 {[%emt 0:00:04]} 23. Nxe1 {[%emt 0:00:04]} Nd5 {[%emt 0:09:45]} 24. Nf3 {[%emt 0:01:13]} h6 {[%emt 0:36:47]} 25. c4 {[%emt 0:06:07]} Nf6 {[%emt 0:02:56]} 26. c5 {[%emt 0:00:38]} Bb8 {[%emt 0:00:04]} 27. Qg6 {[%emt 0:14:44]} Nd5 {[%emt 0:00:35]} 28. Bxd5 {[%emt 0:01:22]} cxd5 {[%emt 0:00:01]} 29. Qf5 {[%emt 0:00:16]} Qd8 {[%emt 0:00:04]} 30. Nh2 {[%emt 0:00:26]} b6 {[%emt 0:05:11]} 31. cxb6 {[%emt 0:01:07]} axb6 {[%emt 0:00:12]} 32. Ng4 {[%emt 0:00:41]} b5 {[%emt 0:01:23]} 33. Ne3 {[%emt 0:01:37]} Ba7 {[%emt 0:00:27]} 34. Qe5 {[%emt 0:00:16]} f6 {[%emt 0:03:17]} 35. Qe6+ {[%emt 0:01:03]} Kf8 {[%emt 0:07:20]} 36. h5 {[%emt 0:01:11]} Bxd4 {[%emt 0:00:47]} 37. Nf5 {[%emt 0:00:56]} Bc5 {[%emt 0:03:06]} 38. Nh4 {[%emt 0:00:07]} g5 {[%emt 0:00:08]} 39. hxg6 {[%emt 0:00:10]} 1-0

[Event "EYTCC U18 Open 2019"]
[Site "Pardubice"]
[Date "2019.07.16"]
[Round "6.30"]
[White "BADELKA, Olga"]
[Black "Schoppen, Casper"]
[Result "1/2-1/2"]
[ECO "A42"]
[WhiteElo "2386"]
[BlackElo "2493"]
[Annotator "ChessBase"]
[PlyCount "92"]
[EventDate "2019.07.11"]
[EventType "swiss"]
[EventCountry "CZE"]
[SourceTitle "playchess.com"]
[Source "ChessBase"]
[SourceQuality "1"]
[BlackTeam "Netherlands"]
[BlackTeamCountry "NED"]
[TimeControl "40/5400+30:1800+30"]

1. d4 {[%emt 0:00:00]} g6 {[%emt 0:03:24]} 2. c4 {[%emt 0:01:52]} Bg7 {[%emt 0:00:12]} 3. Nc3 {[%emt 0:00:14]} d6 {[%emt 0:00:52]} 4. e4 {[%emt 0:00:35]} e5 {[%emt 0:12:36]} 5. d5 {[%emt 0:01:46]} Nd7 {[%emt 0:01:55]} 6. Be3 {[%emt 0:09:00]} Ne7 {[%emt 0:03:24]} 7. g4 {[%emt 0:01:57]} O-O {[%emt 0:00:58]} 8. Bd3 {[%emt 0:03:00]} f5 {[%emt 0:08:46]} 9. gxf5 {[%emt 0:00:56]} gxf5 {[%emt 0:00:05]} 10. exf5 {[%emt 0:00:51]} Nxf5 {[%emt 0:03:45]} 11. Bxf5 {[%emt 0:00:14]} Rxf5 {[%emt 0:00:05]} 12. Nge2 {[%emt 0:00:46]} Rf7 {[%emt 0:01:37]} 13. Ne4 {[%emt 0:08:15]} Nf6 {[%emt 0:01:57]} 14. Ng5 {[%emt 0:07:28]} Rf8 {[%emt 0:01:04]} 15. Qc2 {[%emt 0:03:50]} Qe8 {[%emt 0:04:44]} 16. Rg1 {[%emt 0:05:12]} Qg6 {[%emt 0:13:31]} 17. Qb3 {[%emt 0:00:46]} Ng4 {[%emt 0:03:17]} 18. c5 {[%emt 0:14:06]} Kh8 {[%emt 0:07:46]} 19. h3 {[%emt 0:07:34]} Nxe3 {[%emt 0:00:26]} 20. fxe3 {[%emt 0:00:06]} Qh5 {[%emt 0:05:41]} 21. Ne6 {[%emt 0:15:19]} Bxe6 {[%emt 0:00:57]} 22. dxe6 {[%emt 0:00:03]} dxc5 {[%emt 0:10:10]} 23. Qc4 {[%emt 0:01:21]} b5 {[%emt 0:09:17]} 24. Qxc5 {[%emt 0:02:08]} Rae8 {[%emt 0:00:59]} 25. Rd1 {[%emt 0:12:45]} Qh4+ {[%emt 0:00:57]} 26. Kd2 {[%emt 0:00:05]} Rxe6 {[%emt 0:00:56]} 27. Kc1 {[%emt 0:00:31]} Qh6 {[%emt 0:02:43]} 28. Kb1 {[%emt 0:00:40]} Rg6 {[%emt 0:00:17]} 29. Rgf1 {[%emt 0:01:29]} Rgf6 {[%emt 0:00:27]} 30. Rg1 {[%emt 0:00:36]} Rg6 {[%emt 0:00:33]} 31. Rgf1 {[%emt 0:00:03]} Rgf6 {[%emt 0:00:04]} 32. Rg1 {[%emt 0:00:02]} a6 {[%emt 0:00:51]} 33. Qxc7 {[%emt 0:00:51]} R6f7 {[%emt 0:00:21]} 34. Qc5 {[%emt 0:01:17]} Qxh3 {[%emt 0:00:47]} 35. Rxg7 {[%emt 0:01:04]} Qf5+ {[%emt 0:00:45]} 36. e4 {[%emt 0:00:20]} Qxe4+ {[%emt 0:00:04]} 37. Ka1 {[%emt 0:00:10]} Qxe2 {[%emt 0:01:24]} 38. Rgg1 {[%emt 0:01:14]} Qe4 {[%emt 0:00:43]} 39. Rge1 {[%emt 0:00:17]} Qf4 {[%emt 0:00:11]} 40. Rxe5 {[%emt 0:00:32]} Qf6 {[%emt 0:00:43]} 41. a3 {[%emt 0:30:38]} Rg7 {[%emt 0:04:48]} 42. Rde1 {[%emt 0:00:00]} Rg2 {[%emt 0:02:52]} 43. Qb4 {[%emt 0:00:00]} Rg6 {[%emt 0:03:35]} 44. Qc5 {[%emt 0:00:00]} Rg2 {[%emt 0:07:39]} 45. Qb4 {[%emt 0:00:00]} Rg6 {[%emt 0:01:33]} 46. Qc5 {[%emt 0:00:00]} Rg2 {[%emt 0:00:05]} 1/2-1/2